bitfinex/quotes_BTCUSD_20240821
["timestamp","ask_amount","ask_price","bid_price","bid_amount"]
[1724223895912,1.62652849,59749.0,59748.0,17.14647368]
[1724223896303,2.18922849,59749.0,59748.0,17.03027368]
[1724223896504,2.18922849,59749.0,59748.0,16.40004297]
[1724223896680,2.18922849,59749.0,59748.0,16.39975666]
[1724223896881,2.18922849,59749.0,59748.0,16.50003984]
[1724223897315,2.18922849,59749.0,59748.0,15.01593685]
[1724223897770,2.18922849,59749.0,59748.0,15.01643636]
[1724223899020,2.18922849,59749.0,59748.0,15.22483616]
[1724223899237,2.18922849,59749.0,59748.0,16.70893915]
[1724223899845,2.17996367,59749.0,59748.0,15.46353915]
[1724223900050,2.17996367,59749.0,59748.0,13.77103636]
[1724223900580,2.17996367,59749.0,59748.0,13.43627802]
[1724223900753,2.17996367,59749.0,59748.0,13.09797802]
[1724223900985,2.17996367,59749.0,59748.0,14.38079311]
[1724223901186,2.17996367,59749.0,59748.0,14.59775156]
[1724223901513,2.17996367,59749.0,59748.0,14.93249056]
[1724223901716,2.17996367,59749.0,59748.0,15.60549056]
[1724223901919,2.17996367,59749.0,59748.0,17.08959355]
[1724223904404,2.17996367,59749.0,59748.0,17.08957982]
[1724223904881,2.17996367,59749.0,59748.0,16.87262137]
[1724223905083,2.17996367,59749.0,59748.0,15.254838]
[1724223905316,2.17996367,59749.0,59748.0,13.77073501]
[1724223905720,2.17996367,59749.0,59748.0,14.06652822]
[1724223905945,2.17996367,59749.0,59748.0,14.34932822]
[1724223906148,2.17996367,59749.0,59748.0,13.59554957]
[1724223906914,2.17996367,59749.0,59748.0,13.59654957]
[1724223907316,2.17996367,59749.0,59748.0,13.7127688]
[1724223907493,2.17996367,59749.0,59748.0,13.59654957]
[1724223907698,2.17996367,59749.0,59748.0,13.69654957]
[1724223907893,2.17996367,59749.0,59748.0,13.70554957]
[1724223908492,2.17996367,59749.0,59748.0,13.71956338]
[1724223908852,2.17996367,59749.0,59748.0,13.69156338]
[1724223909052,2.17996367,59749.0,59748.0,13.71956338]
[1724223909255,2.17996367,59749.0,59748.0,13.71968678]
[1724223909493,2.17996367,59749.0,59748.0,13.69168678]
[1724223909924,2.17976223,59749.0,59748.0,13.83590951]
[1724223910078,2.17976223,59749.0,59748.0,13.82190951]
[1724223911263,2.17976223,59749.0,59748.0,13.82061856]
[1724223911667,2.17976223,59749.0,59748.0,13.80661856]
[1724223911874,2.17976223,59749.0,59748.0,13.83461856]
[1724223912348,2.17976223,59749.0,59748.0,13.83461842]
[1724223913683,2.17976223,59749.0,59748.0,14.16935742]
[1724223913884,2.17976223,59749.0,59748.0,13.64985468]
[1724223914190,2.17976223,59749.0,59748.0,13.83361293]
[1724223914416,2.17976223,59749.0,59748.0,13.83461293]
[1724223914618,2.17976223,59749.0,59748.0,13.83274857]
[1724223914827,2.17976223,59749.0,59748.0,14.16748757]
[1724223915763,2.17976223,59749.0,59748.0,13.83274857]
[1724223915993,2.17976223,59749.0,59748.0,13.71652584]
[1724223916571,2.17976223,59749.0,59748.0,13.71671556]
[1724223916777,2.17976223,59749.0,59748.0,13.71672066]
[1724223918484,2.17976223,59749.0,59748.0,13.71572066]
[1724223918888,2.17976223,59749.0,59748.0,13.71672284]
[1724223920407,2.17976223,59749.0,59748.0,13.61619488]
[1724223920609,2.17976223,59749.0,59748.0,13.71672306]
[1724223921335,2.17976223,59749.0,59748.0,13.71572306]
[1724223921746,2.17976223,59749.0,59748.0,13.59952306]
[1724223921957,2.17976223,59749.0,59748.0,13.71572306]
[1724223923172,2.17976223,59749.0,59748.0,13.71672306]
[1724223923450,2.17976223,59749.0,59748.0,13.71572306]
[1724223923744,2.17976223,59749.0,59748.0,13.7167005]
[1724223923916,2.17976223,59749.0,59748.0,13.83113919]
[1724223924121,2.17976223,59749.0,59748.0,13.7167005]
[1724223924579,2.17976223,59749.0,59748.0,13.83125339]
[1724223925190,2.17976223,59749.0,59748.0,14.16599239]
[1724223925607,2.17976223,59749.0,59748.0,14.4619368]
[1724223925608,1.61706223,59749.0,59748.0,14.4619368]
[1724223925822,1.61706223,59749.0,59748.0,14.16599239]
[1724223926026,1.61706223,59749.0,59748.0,14.50073139]
[1724223926236,1.61706223,59749.0,59748.0,16.20912965]
[1724223926454,0.89758418,59749.0,59748.0,14.08679231]
[1724223926664,0.89758418,59749.0,59748.0,13.91775886]
[1724223927506,0.89758418,59749.0,59748.0,13.90375886]
[1724223927929,0.89758418,59749.0,59748.0,13.91775886]
[1724223928513,0.89758418,59749.0,59748.0,7.47373686]
[1724223928676,0.89758418,59749.0,59748.0,13.16157968]
[1724223928879,0.89758418,59749.0,59748.0,13.86688505]
[1724223929059,0.89758418,59749.0,59748.0,13.90373758]
[1724223929277,0.89758418,59749.0,59748.0,13.91773758]
[1724223930107,0.89758418,59749.0,59748.0,13.90373758]
[1724223930311,0.89758418,59749.0,59748.0,13.91773758]
[1724223930713,0.89758418,59749.0,59748.0,13.90373758]
[1724223931568,0.89758418,59749.0,59748.0,13.92801551]
[1724223932804,0.89758418,59749.0,59748.0,13.92801528]
[1724223933581,0.83139419,59749.0,59748.0,14.09693186]
[1724223934162,0.79487919,59749.0,59748.0,14.95693186]
[1724223934386,0.79487919,59749.0,59748.0,14.09693186]
[1724223936086,0.79487919,59749.0,59748.0,14.84693186]
[1724223936311,0.79487919,59749.0,59748.0,14.74642519]
[1724223936514,0.79487919,59749.0,59748.0,15.64264249]
[1724223938123,0.79487919,59749.0,59748.0,15.64247305]
[1724223938736,0.79487919,59749.0,59748.0,15.64247307]
[1724223939146,0.79487919,59749.0,59748.0,15.45857307]
[1724223941269,0.75765919,59749.0,59748.0,15.45857307]
[1724223941696,0.75765919,59749.0,59748.0,15.45857319]
[1724223942727,0.75765919,59749.0,59748.0,15.45857259]
[1724223942917,0.75765919,59749.0,59748.0,15.45856828]
[1724223944070,0.75765919,59749.0,59748.0,15.72975786]
[1724223944410,0.75765919,59749.0,59748.0,16.97515786]
[1724223944611,0.72006919,59749.0,59748.0,16.70396828]
[1724223944820,0.71715345,59749.0,59748.0,16.70396828]
[1724223945246,0.71715345,59749.0,59748.0,16.60346221]
[1724223945454,0.71715345,59749.0,59748.0,16.70396888]
[1724223945703,0.71715345,59749.0,59748.0,17.03870788]
[1724223945704,0.2523859,59749.0,59748.0,17.03870788]
[1724223945908,2.1938,59751.0,59748.0,17.03870788]
[1724223945909,1.93549299,59751.0,59750.0,1.56838687]
[1724223946127,1.93549299,59751.0,59750.0,4.28249755]
[1724223946361,1.80149021,59751.0,59750.0,13.09841868]
[1724223946569,1.66885021,59751.0,59750.0,15.01327468]
[1724223946778,1.53484743,59751.0,59750.0,15.21398398]
[1724223947195,0.92823253,59751.0,59750.0,15.74801198]
[1724223947399,0.89726553,59751.0,59750.0,15.67266198]
[1724223947601,0.78354553,59751.0,59750.0,15.05437545]
[1724223947910,0.67474553,59751.0,59750.0,15.22308269]
[1724223948115,0.67474553,59751.0,59750.0,15.23708269]
[1724223948637,0.67474553,59751.0,59750.0,15.25108269]
[1724223948838,0.67474553,59751.0,59750.0,15.08237545]
[1724223948839,0.39777553,59751.0,59750.0,15.08237545]
[1724223949446,0.30197487,59751.0,59750.0,15.08237545]
[1724223949673,0.27524446,59751.0,59750.0,15.08237545]
[1724223950053,0.25849206,59751.0,59750.0,15.08237545]
[1724223950675,0.16589406,59751.0,59750.0,16.04686518]
[1724223950875,0.09259801,59751.0,59750.0,16.04686518]
[1724223951284,1.3117,59752.0,59751.0,2.01928787]
[1724223951499,1.27526,59752.0,59751.0,11.7593132]
[1724223951872,1.27526,59752.0,59751.0,11.86914245]
[1724223952079,1.15152,59752.0,59751.0,14.05028645]
[1724223952211,0.85073672,59752.0,59751.0,14.05028645]
[1724223952411,0.58086782,59752.0,59751.0,16.01433809]
[1724223952647,0.43251474,59752.0,59751.0,16.01433809]
[1724223952875,0.33431051,59752.0,59751.0,16.02833809]
[1724223953082,0.13632723,59752.0,59751.0,16.19691353]
[1724223953193,0.1965,59770.0,59765.0,0.5784]
[1724223953414,0.01122,59801.0,59770.0,1.131924]
[1724223953415,1.8669115,59771.0,59770.0,1.131924]
[1724223953616,1.40706361,59771.0,59770.0,3.52813344]
[1724223953830,1.40706361,59771.0,59770.0,13.22945525]
[1724223954029,1.40706361,59771.0,59770.0,14.94348779]
[1724223954450,1.40706361,59771.0,59770.0,15.64348779]
[1724223954657,1.40706361,59771.0,59770.0,15.80749077]
[1724223954859,1.40706361,59771.0,59770.0,14.99749077]
[1724223956017,1.29412361,59771.0,59770.0,15.01149077]
[1724223956304,1.29412361,59771.0,59770.0,15.01619077]
[1724223956526,1.29412361,59771.0,59770.0,15.14639077]
[1724223956701,1.29412361,59771.0,59770.0,16.39179077]
[1724223957108,1.29412361,59771.0,59770.0,17.23179077]
[1724223957310,1.29412361,59771.0,59770.0,13.43988123]
[1724223957610,1.29412361,59771.0,59770.0,13.45018537]
[1724223957829,1.26790361,59771.0,59770.0,13.45018537]
[1724223958435,1.26790361,59771.0,59770.0,13.61819705]
[1724223958791,1.26790361,59771.0,59770.0,13.58700805]
[1724223959094,1.26790361,59771.0,59770.0,14.00800805]
[1724223959418,1.23018361,59771.0,59770.0,14.00800805]
[1724223960070,1.23018361,59771.0,59770.0,13.83999637]
[1724223960797,1.23018361,59771.0,59770.0,13.77637506]
[1724223960999,1.23018361,59771.0,59770.0,13.8400012]
[1724223961205,1.23018361,59771.0,59770.0,12.7497742]
[1724223962469,1.22449362,59771.0,59770.0,12.7497742]
[1724223963081,1.10400355,59771.0,59770.0,13.9812902]
[1724223963296,0.64511744,59771.0,59770.0,14.32001654]
[1724223963500,0.62738949,59771.0,59770.0,14.35806818]
[1724223963730,0.45999236,59771.0,59770.0,14.35806818]
[1724223963927,0.44691436,59771.0,59770.0,14.34406818]
[1724223964126,0.22761021,59771.0,59770.0,14.35806818]
[1724223964332,0.15287592,59771.0,59770.0,14.32122594]
[1724223964530,1.07415592,59772.0,59771.0,1.840355]
[1724223964793,1.05741592,59772.0,59771.0,10.97816222]
[1724223965006,1.03664273,59772.0,59771.0,11.25582804]
[1724223965206,1.03664273,59772.0,59771.0,13.25733804]
[1724223965376,0.51317566,59772.0,59771.0,13.44693566]
[1724223965538,0.34974238,59772.0,59771.0,13.45163566]
[1724223965749,0.06873238,59772.0,59771.0,14.4157357]
[1724223965953,0.06873238,59772.0,59771.0,13.04459666]
[1724223966356,0.06873238,59772.0,59771.0,13.15919666]
[1724223966572,1.4781,59773.0,59772.0,1.940922]
[1724223966776,1.4396,59773.0,59772.0,10.83141198]
[1724223966979,1.38289921,59773.0,59772.0,10.43096866]
[1724223967185,1.37863681,59773.0,59772.0,11.93096866]
[1724223967413,1.37863681,59773.0,59772.0,12.26557266]
[1724223967616,1.36524296,59773.0,59772.0,12.26557266]
[1724223967811,1.36524296,59773.0,59772.0,12.28857266]
[1724223968018,1.32824296,59773.0,59772.0,12.30257266]
[1724223968418,1.29952638,59773.0,59772.0,14.84890091]
[1724223968621,1.29952638,59773.0,59772.0,16.09430091]
[1724223968838,1.29511756,59773.0,59772.0,16.12230091]
[1724223969096,1.29511756,59773.0,59772.0,16.10830091]
[1724223969301,1.19605756,59773.0,59772.0,15.93190091]
[1724223969520,1.19605756,59773.0,59772.0,16.26666457]
[1724223969521,1.09328976,59773.0,59772.0,16.26666457]
[1724223969721,1.04697559,59773.0,59772.0,16.0984363]
[1724223969930,0.97020077,59773.0,59772.0,16.98148039]
[1724223970065,0.97020077,59773.0,59772.0,16.96748039]
[1724223970267,0.97020077,59773.0,59772.0,16.98148039]
[1724223970440,0.89700413,59773.0,59772.0,16.98148039]
[1724223970643,0.89461539,59773.0,59772.0,16.98148039]
[1724223970857,0.76068448,59773.0,59772.0,16.96748039]
[1724223971051,0.69569448,59773.0,59772.0,16.0173833]
[1724223971314,0.69569448,59773.0,59772.0,15.9027833]
[1724223971467,0.59249448,59773.0,59772.0,15.9027833]
[1724223971674,0.59249448,59773.0,59772.0,15.9167833]
[1724223971918,0.59249448,59773.0,59772.0,15.9027833]
[1724223972145,0.59249448,59773.0,59772.0,15.9167833]
[1724223972361,0.59249448,59773.0,59772.0,15.49578159]
[1724223972559,0.58332448,59773.0,59772.0,15.49578159]
[1724223972797,0.46056448,59773.0,59772.0,15.49108159]
[1724223973622,0.46056448,59773.0,59772.0,14.96657759]
[1724223973824,0.46056448,59773.0,59772.0,15.25072345]
[1724223974022,0.45986448,59773.0,59772.0,13.5410952]
[1724223974240,0.45986448,59773.0,59772.0,13.54112662]
[1724223974871,0.45986448,59773.0,59772.0,13.56412662]
[1724223975112,0.45926448,59773.0,59772.0,13.897674]
[1724223975932,0.45926448,59773.0,59772.0,13.885974]
[1724223976132,0.45606448,59773.0,59772.0,13.871974]
[1724223976439,0.45606448,59773.0,59772.0,13.885974]
[1724223976662,0.45356448,59773.0,59772.0,13.78552295]
[1724223976869,0.45356448,59773.0,59772.0,13.87197419]
[1724223977149,0.45356448,59773.0,59772.0,13.70507419]
[1724223977349,0.45356448,59773.0,59772.0,13.55245272]
[1724223977664,0.45356448,59773.0,59772.0,13.97345272]
[1724223977864,0.45218648,59773.0,59772.0,13.97345272]
[1724223978491,0.45218648,59773.0,59772.0,14.04043872]
[1724223978786,0.41832649,59773.0,59772.0,13.87245619]
[1724223979109,0.41832649,59773.0,59772.0,14.87352949]
[1724223979307,0.41832649,59773.0,59772.0,15.58208113]
[1724223980232,0.38093649,59773.0,59772.0,15.91668513]
[1724223980502,0.38093649,59773.0,59772.0,15.48162989]
[1724223980700,0.38093649,59773.0,59772.0,15.58208183]
[1724223980911,0.38093649,59773.0,59772.0,16.54619036]
[1724223981504,0.38093649,59773.0,59772.0,16.55789036]
[1724223981912,0.38093649,59773.0,59772.0,18.22017436]
[1724223982052,0.37903649,59773.0,59772.0,18.20847436]
[1724223982655,0.37903649,59773.0,59772.0,18.32857885]
[1724223983011,0.37733649,59773.0,59772.0,18.44262642]
[1724223984168,0.37733649,59773.0,59772.0,18.93437562]
[1724223984382,0.37583649,59773.0,59772.0,18.66318604]
[1724223984751,0.3356565,59773.0,59772.0,18.66318604]
[1724223984964,0.3356565,59773.0,59772.0,16.11455779]
[1724223985849,0.2986365,59773.0,59772.0,16.12471428]
[1724223986095,0.2986365,59773.0,59772.0,16.12471224]
[1724223986783,0.2616865,59773.0,59772.0,18.67334049]
[1724223986961,0.2616865,59773.0,59772.0,16.01630601]
[1724223987175,0.2138137,59773.0,59772.0,16.019965]
[1724223987371,0.2138137,59773.0,59772.0,16.136165]
[1724223988589,0.2138137,59773.0,59772.0,16.40583189]
[1724223989220,0.2138137,59773.0,59772.0,16.30538054]
[1724223989396,0.2138137,59773.0,59772.0,16.13393783]
[1724223989803,0.17727871,59773.0,59772.0,16.13393366]
[1724223990357,0.17727871,59773.0,59772.0,17.32045271]
[1724223990888,0.17727871,59773.0,59772.0,17.32135691]
[1724223991283,0.10209871,59773.0,59772.0,17.31120041]
[1724223991908,0.10209871,59773.0,59772.0,21.0832192]
[1724223992086,0.48379871,59773.0,59772.0,21.0832192]
[1724223992290,0.10209871,59773.0,59772.0,21.0715192]
[1724223993438,0.10209871,59773.0,59772.0,21.7444192]
[1724223994051,0.10209871,59773.0,59772.0,21.7327192]
[1724223994627,0.06237871,59773.0,59772.0,21.74272748]
[1724223994830,0.05280696,59773.0,59772.0,21.74272748]
[1724223994982,0.05280696,59773.0,59772.0,21.72872748]
[1724223995183,0.0526056,59773.0,59772.0,21.72870922]
[1724223995809,0.0526056,59773.0,59772.0,21.62768394]
[1724223996016,0.0526056,59773.0,59772.0,21.72812878]
[1724223996217,0.0526056,59773.0,59772.0,21.74212878]
[1724223996745,0.0066146,59773.0,59772.0,21.72812878]
[1724223996938,0.0066146,59773.0,59772.0,21.74212878]
[1724223997154,0.0066146,59773.0,59772.0,21.72812878]
[1724223997363,0.0066146,59773.0,59772.0,21.75382878]
[1724223997975,0.0066146,59773.0,59772.0,21.7438205]
[1724223998390,2.6999966,59775.0,59774.0,0.501889]
[1724223998592,2.0506246,59775.0,59774.0,5.41873788]
[1724223998823,2.0506246,59775.0,59774.0,13.98141681]
[1724223999017,2.0506246,59775.0,59774.0,15.49311681]
[1724223999223,2.0506246,59775.0,59774.0,15.82770981]
[1724223999637,2.0506246,59775.0,59774.0,15.84170981]
[1724224000086,2.0506246,59775.0,59774.0,15.82770981]
[1724224000237,1.9837066,59775.0,59774.0,15.82770981]
[1724224000438,1.12036264,59775.0,59774.0,16.32459077]
[1724224000620,0.87405368,59775.0,59774.0,16.57405377]
[1724224000827,0.84059468,59775.0,59774.0,16.57405377]
[1724224001022,0.84059468,59775.0,59774.0,16.58805377]
[1724224001479,0.84059468,59775.0,59774.0,16.60205377]
[1724224001633,0.80713568,59775.0,59774.0,16.60205377]
[1724224001829,0.77367668,59775.0,59774.0,16.77845377]
[1724224002042,0.67329968,59775.0,59774.0,16.60205377]
[1724224002449,0.63638968,59775.0,59774.0,16.60205377]
[1724224002974,0.51098863,59775.0,59774.0,16.60204861]
[1724224003217,0.42534329,59775.0,59774.0,17.78849227]
[1724224004028,0.40990329,59775.0,59774.0,17.77075527]
[1724224004231,0.60240329,59775.0,59774.0,17.63668527]
[1724224004429,0.59847575,59775.0,59774.0,17.75288527]
[1724224004655,0.40597575,59775.0,59774.0,17.75288527]
[1724224005405,0.81637575,59775.0,59774.0,17.75288527]
[1724224005639,0.81637575,59775.0,59774.0,17.74118527]
[1724224005838,0.81637575,59775.0,59774.0,21.51320406]
[1724224006083,0.81637575,59775.0,59774.0,21.51319098]
[1724224007240,0.81637575,59775.0,59774.0,21.4127513]
[1724224007458,0.81637575,59775.0,59774.0,21.51319182]
[1724224008237,1.01297575,59775.0,59774.0,21.52489182]
[1724224009178,0.97614576,59775.0,59774.0,21.52489182]
[1724224009587,0.97174227,59775.0,59774.0,21.52489182]
[1724224009808,0.97174227,59775.0,59774.0,20.34800128]
[1724224010215,0.97174227,59775.0,59774.0,20.34884041]
[1724224010421,0.97174227,59775.0,59774.0,20.34800412]
[1724224011497,0.97174227,59775.0,59774.0,20.44850412]
[1724224011707,0.97174227,59775.0,59774.0,20.34800412]
[1724224012153,0.97174227,59775.0,59774.0,20.46535858]
[1724224012365,0.96330543,59775.0,59774.0,20.46535858]
[1724224012563,0.91949347,59775.0,59774.0,20.46535858]
[1724224012987,0.91949347,59775.0,59774.0,20.76120535]
[1724224013199,0.91949347,59775.0,59774.0,22.15671973]
[1724224014261,0.91949347,59775.0,59774.0,22.03936527]
[1724224014466,0.91949347,59775.0,59774.0,22.15659981]
[1724224014657,0.91949347,59775.0,59774.0,21.84802668]
[1724224014916,0.91949347,59775.0,59774.0,23.33361308]
[1724224015790,0.91949347,59775.0,59774.0,17.02431908]
[1724224015950,0.91949347,59775.0,59774.0,23.32952408]
[1724224016883,0.91949347,59775.0,59774.0,23.32954042]
[1724224018161,0.91949347,59775.0,59774.0,23.02125397]
[1724224018416,0.91949347,59775.0,59774.0,23.32994983]
[1724224018816,0.91949347,59775.0,59774.0,22.91344983]
[1724224019027,0.91949347,59775.0,59774.0,22.15305929]
[1724224019220,0.91949347,59775.0,59774.0,22.2568505]
[1724224019621,0.19886348,59775.0,59774.0,20.77374188]
[1724224019828,2.31939877,59777.0,59776.0,2.470201]
[1724224020079,2.24356792,59777.0,59776.0,5.95585535]
[1724224020255,2.24356792,59777.0,59776.0,14.35349577]
[1724224020579,2.24356792,59777.0,59776.0,16.18807777]
[1724224020924,2.24356792,59777.0,59776.0,16.31823947]
[1724224021124,2.24356792,59777.0,59776.0,16.21779614]
[1724224021467,2.24356792,59777.0,59776.0,16.3182354]
[1724224021692,2.24356792,59777.0,59776.0,16.4187354]
[1724224022073,2.24356792,59777.0,59776.0,17.6641354]
[1724224022246,2.24356792,59777.0,59776.0,17.6781354]
[1724224024927,2.24356792,59777.0,59776.0,17.57769614]
[1724224025133,2.24356792,59777.0,59776.0,17.67813756]
[1724224025338,2.07627792,59777.0,59776.0,17.5893983]
[1724224025542,2.05006134,59777.0,59776.0,17.68983756]
[1724224025918,2.63416134,59777.0,59776.0,18.36263756]
[1724224026492,2.63416134,59777.0,59776.0,18.33463756]
[1724224026902,2.63416134,59777.0,59776.0,18.36263756]
[1724224027159,2.63416134,59777.0,59776.0,18.34863756]
[1724224027640,2.63416134,59777.0,59776.0,18.36263756]
[1724224028790,2.63498334,59777.0,59776.0,18.36263756]
[1724224028996,2.63498334,59777.0,59776.0,18.35093756]
[1724224029877,2.63498334,59777.0,59776.0,18.47027735]
[1724224030503,2.63498334,59777.0,59776.0,18.89127735]
[1724224032588,2.63498334,59777.0,59776.0,18.47027735]
[1724224032789,2.63498334,59777.0,59776.0,18.40666582]
[1724224032986,2.63498334,59777.0,59776.0,18.47028044]
[1724224033214,2.63498334,59777.0,59776.0,12.23242844]
[1724224033522,2.63498334,59777.0,59776.0,17.28383678]
[1724224033723,2.63498334,59777.0,59776.0,18.47028044]
[1724224033954,2.63498334,59777.0,59776.0,18.48198044]
[1724224034358,2.63498334,59777.0,59776.0,18.51964776]
[1724224035179,2.63498334,59777.0,59776.0,18.81548656]
[1724224035429,2.63498334,59777.0,59776.0,22.16863293]
[1724224035430,2.60605609,59777.0,59776.0,22.16863293]
[1724224035638,2.51204252,59777.0,59776.0,18.51964776]
[1724224036423,2.51204252,59777.0,59776.0,18.48198044]
[1724224037182,0.47726228,59785.0,59784.0,1.131805]
[1724224037422,0.47726228,59785.0,59776.0,17.33279731]
[1724224037423,0.099995,59778.0,59777.0,0.84267918]
[1724224037622,1.6421,59779.0,59778.0,4.358166]
[1724224037623,1.602095,59779.0,59778.0,4.358166]
[1724224037830,1.40572172,59779.0,59778.0,7.09671359]
[1724224038034,0.75772172,59779.0,59778.0,7.11971359]
[1724224038378,1.2496,59780.0,59778.0,7.11971359]
[1724224038379,1.2496,59780.0,59779.0,0.501847]
[1724224038583,1.2496,59780.0,59779.0,6.09702541]
[1724224038898,1.2496,59780.0,59779.0,7.43528913]
[1724224039232,1.2496,59780.0,59779.0,8.67603629]
[1724224039637,1.2496,59780.0,59779.0,8.84508654]
[1724224040145,1.6578,59780.0,59779.0,8.84508654]
[1724224040346,1.6578,59780.0,59779.0,8.85908654]
[1724224040688,1.6578,59780.0,59779.0,8.87308654]
[1724224040968,1.6578,59780.0,59779.0,8.77265209]
[1724224041217,1.6578,59780.0,59779.0,8.8730879]
[1724224041442,1.8556,59780.0,59779.0,8.8730879]
[1724224041624,1.84540881,59780.0,59779.0,8.70403765]
[1724224041826,1.84540881,59780.0,59779.0,8.80453765]
[1724224042449,1.84540881,59780.0,59779.0,9.22553765]
[1724224043093,1.84540881,59780.0,59779.0,10.47093765]
[1724224043521,1.84540881,59780.0,59779.0,10.48263765]
[1724224043731,1.84540881,59780.0,59779.0,6.75682765]
[1724224043906,1.84540881,59780.0,59779.0,9.74045847]
[1724224044108,1.84540881,59780.0,59779.0,10.48263765]
[1724224044998,1.84540881,59780.0,59779.0,10.38220184]
[1724224045219,1.84540881,59780.0,59779.0,10.48263767]
[1724224046687,1.84540881,59780.0,59779.0,10.49179528]
[1724224046851,1.84540881,59780.0,59779.0,10.66081342]
[1724224047054,1.84540881,59780.0,59779.0,10.56037759]
[1724224047272,1.84540881,59780.0,59779.0,11.26081383]
[1724224047476,1.84540881,59780.0,59779.0,11.20799569]
[1724224048081,1.84540881,59780.0,59779.0,12.17197136]
[1724224048507,1.84540881,59780.0,59779.0,11.96697136]
[1724224048733,1.84540881,59780.0,59779.0,12.0832117]
[1724224048951,1.84540881,59780.0,59779.0,11.6622117]
[1724224049700,1.84540881,59780.0,59779.0,11.65051443]
[1724224050707,1.84540881,59780.0,59779.0,11.53431443]
[1724224051001,1.84540881,59780.0,59779.0,11.87509182]
[1724224051213,1.84540881,59780.0,59779.0,11.99129182]
[1724224051417,1.84540881,59780.0,59779.0,10.91853684]
[1724224051618,1.84540881,59780.0,59779.0,8.22949284]
[1724224051822,1.84540881,59780.0,59779.0,7.53682587]
[1724224052197,1.84540881,59780.0,59779.0,5.68557221]
[1724224052337,1.84540881,59780.0,59779.0,5.65757221]
[1724224052568,1.84540881,59780.0,59779.0,5.68557221]
[1724224052768,1.84540881,59780.0,59779.0,5.78557221]
[1724224052968,1.84540881,59780.0,59779.0,5.76156219]
[1724224053241,1.84540881,59780.0,59779.0,5.74756219]
[1724224053434,1.84540881,59780.0,59779.0,5.77576789]
[1724224053610,1.84623081,59780.0,59779.0,5.77577081]
[1724224053993,1.84623081,59780.0,59779.0,5.69877081]
[1724224054186,1.84623081,59780.0,59779.0,4.95659163]
[1724224054639,1.84623081,59780.0,59779.0,4.94489163]
[1724224054854,1.84623081,59780.0,59779.0,4.91873731]
[1724224055063,1.84623081,59780.0,59779.0,4.81642631]
[1724224055476,1.84623081,59780.0,59779.0,4.80242631]
[1724224055630,1.84623081,59780.0,59779.0,4.90242631]
[1724224055836,1.84623081,59780.0,59779.0,4.54486131]
[1724224056321,1.84623081,59780.0,59779.0,4.69968701]
[1724224056484,1.84623081,59780.0,59779.0,4.71368701]
[1724224057115,1.84623081,59780.0,59779.0,4.54486131]
[1724224057538,1.84623081,59780.0,59779.0,4.53316131]
[1724224057929,1.84623081,59780.0,59779.0,4.39000176]
[1724224058132,1.84623081,59780.0,59779.0,4.49047788]
[1724224058739,1.84623081,59780.0,59779.0,4.50447788]
[1724224058979,1.84623081,59780.0,59779.0,3.6143221]
[1724224059937,1.84623081,59780.0,59779.0,3.5783281]
[1724224060136,1.84623081,59780.0,59779.0,2.4540251]
[1724224060342,1.84923081,59780.0,59779.0,2.39039022]
[1724224061102,1.84923081,59780.0,59779.0,2.35354898]
[1724224061307,1.84623081,59780.0,59779.0,3.28056898]
[1724224061611,1.84723081,59780.0,59779.0,3.4542943]
[1724224061813,1.84623081,59780.0,59779.0,2.56411683]
[1724224062011,1.84623081,59780.0,59779.0,2.50047972]
[1724224062581,1.84623081,59780.0,59779.0,2.15582651]
[1724224062582,1.84723081,59780.0,59779.0,2.15582651]
[1724224062834,1.84923081,59780.0,59779.0,2.11898398]
[1724224063029,1.84923081,59780.0,59779.0,0.74904886]
[1724224063229,1.84923081,59780.0,59779.0,1.13303988]
[1724224063461,1.84723081,59780.0,59779.0,1.13303988]
[1724224063640,1.84923081,59780.0,59779.0,1.13303988]
[1724224064255,1.84923081,59780.0,59779.0,0.89265988]
[1724224064457,1.96543081,59780.0,59779.0,0.85581698]
[1724224064639,1.96543081,59780.0,59779.0,0.89265988]
[1724224064833,1.96543081,59780.0,59779.0,0.85581698]
[1724224065039,1.96543081,59780.0,59779.0,0.89265988]
[1724224065262,1.96543081,59780.0,59779.0,1.03511698]
[1724224065621,1.96543081,59780.0,59779.0,1.01874898]
[1724224066040,1.96543081,59780.0,59779.0,0.87130298]
[1724224066242,2.05714458,59780.0,59779.0,0.87130298]
[1724224066589,1.96543081,59780.0,59779.0,0.77021263]
[1724224066741,1.96543081,59780.0,59779.0,0.77111683]
[1724224067719,1.96543081,59780.0,59779.0,0.78511683]
[1724224068494,1.96543081,59780.0,59779.0,0.88511683]
[1724224068693,1.96543081,59780.0,59779.0,0.53485893]
[1724224069014,1.96643081,59780.0,59779.0,0.53285893]
[1724224069213,1.96543081,59780.0,59779.0,0.52085893]
[1724224069427,1.96643081,59780.0,59779.0,0.53285893]
[1724224070313,1.96743081,59780.0,59779.0,0.54385893]
[1724224070734,1.96443081,59780.0,59779.0,0.54385893]
[1724224070896,1.84823081,59780.0,59779.0,0.54385893]
[1724224071074,1.84923081,59780.0,59779.0,0.54385893]
[1724224071486,1.85123081,59780.0,59779.0,0.54385893]
[1724224072964,1.84823081,59780.0,59779.0,0.54385893]
[1724224073348,1.84823081,59780.0,59779.0,0.71114093]
[1724224073613,1.84823081,59780.0,59779.0,2.19371393]
[1724224073733,1.84823081,59780.0,59779.0,4.40757007]
[1724224073939,1.84823081,59780.0,59779.0,4.45597713]
[1724224074148,1.84823081,59780.0,59779.0,4.37500313]
[1724224074857,1.84823081,59780.0,59779.0,1.48076313]
[1724224075052,1.84823081,59780.0,59779.0,1.41711807]
[1724224075281,1.84823081,59780.0,59779.0,4.54176113]
[1724224075497,1.84823081,59780.0,59779.0,4.87395513]
[1724224075700,1.84823081,59780.0,59779.0,4.85863913]
[1724224076280,1.84823081,59780.0,59779.0,5.19320413]
[1724224076281,1.65043081,59780.0,59779.0,5.19320413]
[1724224076460,1.24223081,59780.0,59779.0,5.73545687]
[1724224077914,1.24223081,59780.0,59779.0,7.23545687]
[1724224078587,1.24223081,59780.0,59779.0,7.13496467]
[1724224078792,1.24123081,59780.0,59779.0,7.22440341]
[1724224079029,1.24023081,59780.0,59779.0,7.21240341]
[1724224079246,1.24023081,59780.0,59779.0,7.24040341]
[1724224079652,1.24023081,59780.0,59779.0,7.22640341]
[1724224079852,1.24023081,59780.0,59779.0,7.11952841]
[1724224079966,1.24023081,59780.0,59779.0,6.42278641]
[1724224081431,1.24023081,59780.0,59779.0,6.79366133]
[1724224081675,1.24023081,59780.0,59779.0,7.17876133]
[1724224081891,1.24023081,59780.0,59779.0,8.98457833]
[1724224082655,1.24023081,59780.0,59779.0,9.18081317]
[1724224082869,1.24023081,59780.0,59779.0,8.6078746]
[1724224083034,1.24023081,59780.0,59779.0,8.27707476]
[1724224083211,1.24023081,59780.0,59779.0,8.29107476]
[1724224083627,1.24023081,59780.0,59779.0,8.39327476]
[1724224084095,1.24023081,59780.0,59779.0,8.79217476]
[1724224084950,1.24023081,59780.0,59779.0,8.39327476]
[1724224085161,1.24023081,59780.0,59779.0,8.30680506]
[1724224085360,1.24023081,59780.0,59779.0,8.40726776]
[1724224085571,1.24023081,59780.0,59779.0,8.80616776]